bitfinex/quotes_BTCUSD_20230109
["timestamp","ask_amount","ask_price","bid_price","bid_amount"]
[1673298478606,5.06e-06,17212.0,17211.0,7.10138137]
[1673298483431,5.06e-06,17212.0,17211.0,7.62295156]
[1673298483980,5.06e-06,17212.0,17211.0,7.10138137]
[1673298485212,5.06e-06,17212.0,17211.0,7.86861104]
[1673298485460,0.23782789,17215.0,17214.0,5.494e-05]
[1673298485733,0.00015,17215.0,17214.0,5.42209204]
[1673298485986,0.00067066,17216.0,17214.0,6.09900191]
[1673298486309,0.00067066,17216.0,17215.0,0.90329045]
[1673298486500,0.00067066,17216.0,17215.0,1.75033494]
[1673298486749,0.00067066,17216.0,17215.0,4.27716477]
[1673298487254,0.00067066,17216.0,17215.0,4.45105562]
[1673298487782,0.00067066,17216.0,17215.0,4.71156341]
[1673298488010,0.00367066,17216.0,17215.0,4.59005562]
[1673298489538,0.00367066,17216.0,17215.0,5.0113089]
[1673298489796,0.00367066,17216.0,17215.0,6.0113089]
[1673298490788,0.00367066,17216.0,17215.0,5.83718142]
[1673298491281,0.00367066,17216.0,17215.0,3.98788978]
[1673298491282,0.24134855,17216.0,17215.0,3.98788978]
[1673298491532,0.00367066,17216.0,17215.0,3.98788978]
[1673298492299,0.00367066,17216.0,17215.0,3.81428292]
[1673298492793,0.00367066,17216.0,17215.0,4.11428292]
[1673298494092,0.00367066,17216.0,17215.0,4.28788978]
[1673298494342,0.00367066,17216.0,17215.0,4.11428292]
[1673298494827,0.00367066,17216.0,17215.0,4.28788978]
[1673298496568,0.00367066,17216.0,17215.0,4.81239898]
[1673298497319,0.00367066,17216.0,17215.0,5.49567908]
[1673298497841,0.00367066,17216.0,17215.0,5.07279662]
[1673298498326,0.00367066,17216.0,17215.0,5.49664179]
[1673298498833,0.00367066,17216.0,17215.0,4.81239898]
[1673298499081,0.00367066,17216.0,17215.0,5.07279662]
[1673298499340,0.00367066,17216.0,17215.0,5.49664385]
[1673298500335,0.00367066,17216.0,17215.0,5.84426394]
[1673298500591,0.00367066,17216.0,17215.0,5.49674691]
[1673298500847,0.00367066,17216.0,17215.0,4.54839048]
[1673298501087,0.00367066,17216.0,17215.0,3.81428292]
[1673298501431,0.17257066,17216.0,17215.0,3.51428292]
[1673298502378,0.17257066,17216.0,17215.0,2.903981]
[1673298502904,0.17257066,17216.0,17215.0,2.323093]
[1673298503142,0.17257066,17216.0,17215.0,2.300776]
[1673298503394,0.17257066,17216.0,17215.0,2.323092]
[1673298503923,0.17257066,17216.0,17215.0,2.623092]
[1673298504168,0.17257066,17216.0,17215.0,2.62481895]
[1673298504665,0.17257066,17216.0,17215.0,3.20570695]
[1673298504916,0.17257066,17216.0,17215.0,2.62481895]
[1673298506703,0.17247885,17216.0,17215.0,2.300776]
[1673298507724,0.17247885,17216.0,17215.0,2.30104895]
[1673298507962,0.17247885,17216.0,17215.0,2.32336495]
[1673298508213,0.17247885,17216.0,17215.0,2.62336495]
[1673298509729,0.17247885,17216.0,17215.0,2.60104895]
[1673298509975,0.17247885,17216.0,17215.0,2.30104895]
[1673298510522,0.17247885,17216.0,17215.0,3.18193695]
[1673298510736,0.17247885,17216.0,17215.0,3.20425295]
[1673298512282,0.17247885,17216.0,17215.0,2.62336495]
[1673298512779,0.18598857,17216.0,17215.0,3.20425295]
[1673298513286,0.18598857,17216.0,17215.0,2.623092]
[1673298513528,0.18598857,17216.0,17215.0,2.600776]
[1673298513779,0.18598857,17216.0,17215.0,2.300776]
[1673298514030,0.18598857,17216.0,17215.0,3.181664]
[1673298514270,0.18598857,17216.0,17215.0,3.18224871]
[1673298514519,0.18598857,17216.0,17215.0,3.20456471]
[1673298515058,0.18598857,17216.0,17215.0,3.20398]
[1673298515557,0.18598857,17216.0,17215.0,3.20456471]
[1673298516364,0.18598857,17216.0,17215.0,3.18224871]
[1673298516680,0.18598857,17216.0,17215.0,3.20456471]
[1673298516866,0.18598857,17216.0,17215.0,3.18224871]
[1673298517382,0.01708857,17216.0,17215.0,3.18224871]
[1673298518175,0.01708857,17216.0,17215.0,3.20456471]
[1673298519930,0.01708857,17216.0,17215.0,2.62367671]
[1673298520735,0.01708857,17216.0,17215.0,2.79738663]
[1673298522037,0.01708857,17216.0,17215.0,3.37827463]
[1673298522791,0.01708857,17216.0,17215.0,3.63867227]
[1673298524857,0.01708857,17216.0,17215.0,3.38473074]
[1673298525107,0.01708857,17216.0,17215.0,4.04874672]
[1673298525369,0.01708857,17216.0,17215.0,4.22265689]
[1673298526706,0.01708857,17216.0,17215.0,4.39659773]
[1673298527021,0.01708857,17216.0,17215.0,4.04897764]
[1673298527221,0.01708857,17216.0,17215.0,4.39659773]
[1673298527469,0.01708857,17216.0,17215.0,4.04839293]
[1673298528512,0.01708857,17216.0,17215.0,4.62928093]
[1673298528725,0.01708857,17216.0,17215.0,4.22572685]
[1673298529240,0.01708857,17216.0,17215.0,3.96532921]
[1673298529489,0.01708857,17216.0,17215.0,4.22572685]
[1673298529704,0.01708857,17216.0,17215.0,4.62844363]
[1673298529963,0.01708857,17216.0,17215.0,4.22572685]
[1673298530477,0.01708857,17216.0,17215.0,3.96532921]
[1673298530735,0.01708857,17216.0,17215.0,4.62844432]
[1673298530981,0.01708857,17216.0,17215.0,4.22572685]
[1673298531478,0.01708857,17216.0,17215.0,3.96526495]
[1673298534710,0.01708857,17216.0,17215.0,3.96541497]
[1673298534942,0.01708857,17216.0,17215.0,3.64294895]
[1673298535191,0.01708857,17216.0,17215.0,3.49132411]
[1673298535445,0.01708857,17216.0,17215.0,3.96541497]
[1673298535705,0.01708857,17216.0,17215.0,4.62842399]
[1673298538540,0.01708857,17216.0,17215.0,4.62949168]
[1673298538811,0.01708857,17216.0,17215.0,4.22581261]
[1673298539053,0.01708857,17216.0,17215.0,4.62949108]
[1673298539307,0.01708857,17216.0,17215.0,4.22581261]
[1673298539554,0.01708857,17216.0,17215.0,4.62949795]
[1673298541564,0.01708857,17216.0,17215.0,4.97711804]
[1673298541817,0.01708857,17216.0,17215.0,4.62949795]
[1673298543556,0.01708857,17216.0,17215.0,4.62934793]
[1673298543792,0.01708857,17216.0,17215.0,4.62943283]
[1673298544294,0.01708857,17216.0,17215.0,4.20334659]
[1673298544784,0.01708857,17216.0,17215.0,4.6296756]
[1673298546802,0.01708857,17216.0,17215.0,4.97729569]
[1673298547320,0.01708857,17216.0,17215.0,4.80335485]
[1673298549376,0.01708857,17216.0,17215.0,4.62994565]
[1673298552383,0.01708857,17216.0,17215.0,4.22587077]
[1673298552653,0.01708857,17216.0,17215.0,3.94315713]
[1673298553145,0.26110857,17216.0,17215.0,2.47492502]
[1673298553392,0.59890857,17216.0,17215.0,2.300776]
[1673298554152,1.09889831,17216.0,17215.0,1.719888]
[1673298554400,1.69930855,17216.0,17215.0,1.139]
[1673298554643,2.59473331,17216.0,17215.0,1.139]
[1673298555384,2.59173331,17216.0,17215.0,1.0]
[1673298555636,2.94022695,17216.0,17215.0,1.07688423]
[1673298555885,2.76695911,17216.0,17215.0,0.99988423]
[1673298556128,2.76695911,17216.0,17211.0,1.08467512]
[1673298556129,0.3,17215.0,17211.0,1.84740579]
[1673298556368,0.1689,17213.0,17212.0,0.3]
[1673298556620,0.1689,17213.0,17212.0,2.2372126]
[1673298556879,0.1689,17213.0,17212.0,2.23684261]
[1673298557130,0.168,17214.0,17212.0,2.81782561]
[1673298557373,0.168,17214.0,17212.0,3.042946]
[1673298557640,0.168,17214.0,17213.0,0.022328]
[1673298557885,0.168,17214.0,17213.0,1.18424]
[1673298558382,0.168,17214.0,17213.0,1.48424]
[1673298558887,0.172,17214.0,17213.0,1.26624]
[1673298559387,0.172,17214.0,17213.0,1.243912]
[1673298560380,0.172,17214.0,17213.0,1.266238]
[1673298560883,0.172,17214.0,17213.0,1.566238]
[1673298561134,0.172,17214.0,17213.0,1.266238]
[1673298561911,0.172,17214.0,17213.0,1.243912]
[1673298562499,0.172,17214.0,17213.0,1.266238]
[1673298562686,0.172,17214.0,17213.0,1.243912]
[1673298567936,0.172,17214.0,17213.0,2.124868]
[1673298568691,0.17192042,17214.0,17213.0,2.147194]
[1673298569202,0.17192042,17214.0,17213.0,2.124868]
[1673298569450,0.17192042,17214.0,17213.0,2.147194]
[1673298569966,0.17192042,17214.0,17213.0,2.124868]
[1673298570990,0.17192042,17214.0,17213.0,2.147194]
[1673298571243,0.17192042,17214.0,17213.0,1.847194]
[1673298571526,0.17192042,17214.0,17213.0,2.124868]
[1673298572030,0.17192042,17214.0,17213.0,1.824868]
[1673298573100,0.17192042,17214.0,17213.0,1.847194]
[1673298573617,0.17192042,17214.0,17213.0,1.824868]
[1673298575850,0.17192042,17214.0,17213.0,2.147194]
[1673298576415,0.004,17214.0,17213.0,1.824868]
[1673298577572,0.17157233,17214.0,17213.0,1.847194]
[1673298577866,0.17157233,17214.0,17213.0,1.824868]
[1673298579711,0.18790793,17214.0,17213.0,1.824868]
[1673298582305,0.18790793,17214.0,17213.0,0.662956]
[1673298582567,0.18790793,17214.0,17213.0,0.082]
[1673298582789,0.48790793,17214.0,17213.0,0.082]
[1673298586969,0.18790793,17214.0,17213.0,0.082]
[1673298592249,0.36082154,17214.0,17213.0,0.082]
[1673298594065,0.18790793,17214.0,17213.0,0.082]
[1673298594326,0.36082154,17214.0,17213.0,0.662956]
[1673298594841,0.18790793,17214.0,17213.0,0.662956]
[1673298595351,0.36082154,17214.0,17213.0,0.662956]
[1673298595846,0.18790793,17214.0,17213.0,0.66304343]
[1673298596080,0.36082154,17214.0,17213.0,0.66304343]
[1673298596296,0.18790793,17214.0,17213.0,0.66304343]
[1673298596855,0.36082154,17214.0,17213.0,0.662956]
[1673298597098,0.18790793,17214.0,17213.0,0.662956]
[1673298597347,0.01930793,17214.0,17213.0,0.662956]
[1673298597562,0.01930793,17214.0,17213.0,0.66304343]
[1673298597796,0.19222154,17214.0,17213.0,0.662956]
[1673298598047,0.01930793,17214.0,17213.0,0.662956]
[1673298598321,0.19222154,17214.0,17213.0,0.082]
[1673298598563,0.19222154,17214.0,17213.0,0.08208743]
[1673298600101,0.01930793,17214.0,17213.0,0.66304343]
[1673298600416,0.19222154,17214.0,17213.0,0.66304343]
[1673298600705,0.01930793,17214.0,17213.0,0.662956]
[1673298601461,0.01930793,17214.0,17213.0,1.243912]
[1673298601715,0.01930793,17214.0,17213.0,0.659343]
[1673298601979,0.31930793,17214.0,17213.0,0.659343]
[1673298602249,0.49222154,17214.0,17213.0,0.659343]
[1673298602474,0.49222154,17214.0,17213.0,0.078387]
[1673298603718,1.63696001,17214.0,17213.0,0.078387]
[1673298603975,2.18825031,17214.0,17213.0,0.078387]
[1673298604522,2.39146204,17214.0,17213.0,0.078387]
[1673298604741,2.02943404,17214.0,17213.0,0.078387]
[1673298605003,1.44851204,17214.0,17213.0,0.078387]
[1673298606048,1.63705683,17214.0,17213.0,0.078387]
[1673298606285,1.27502883,17214.0,17213.0,0.078387]
[1673298607331,1.44392883,17214.0,17213.0,0.078387]
[1673298610440,1.18408643,17214.0,17213.0,0.078387]
[1673298611204,1.44392883,17214.0,17213.0,0.078387]
[1673298611458,1.18408643,17214.0,17213.0,0.078387]
[1673298614510,1.18408643,17214.0,17213.0,0.659343]
[1673298615051,1.18408643,17214.0,17213.0,0.65943043]
[1673298615052,0.36121836,17214.0,17213.0,0.65943043]
[1673298615298,0.01930793,17214.0,17213.0,2.07234493]
[1673298615557,0.01930793,17214.0,17213.0,2.19344104]
[1673298615814,0.01930793,17214.0,17213.0,2.21567961]
[1673298616114,0.01930793,17214.0,17213.0,2.19344104]
[1673298616370,0.01930793,17214.0,17213.0,2.77439704]
[1673298616637,0.01930793,17214.0,17213.0,2.79672304]
[1673298617440,0.01930793,17214.0,17213.0,3.79672304]
[1673298618251,0.01930793,17214.0,17213.0,3.97063912]
[1673298618827,0.01930793,17214.0,17213.0,4.23152073]
[1673298619595,0.01930793,17214.0,17213.0,3.97063912]
[1673298619846,0.01930793,17214.0,17213.0,4.23152073]
[1673298620358,0.01930793,17214.0,17213.0,3.97063912]
[1673298620860,0.01930793,17214.0,17213.0,3.97055169]
[1673298621958,0.01923027,17214.0,17213.0,3.97055169]
[1673298623233,0.01923027,17214.0,17213.0,3.97065253]
[1673298623489,0.01923027,17214.0,17213.0,3.79673645]
[1673298624090,0.01923027,17214.0,17213.0,2.79663561]
[1673298624243,0.01923027,17214.0,17213.0,2.79673645]
[1673298625027,0.01923027,17214.0,17213.0,2.49673645]
[1673298625276,0.01923027,17214.0,17213.0,2.79673645]
[1673298628716,0.01923027,17214.0,17213.0,2.49673645]
[1673298628973,0.01923027,17214.0,17213.0,2.79673645]
[1673298629254,0.01923027,17214.0,17213.0,2.97065253]
[1673298629823,0.01923027,17214.0,17213.0,2.94832653]
[1673298630400,0.01923027,17214.0,17213.0,2.79673645]
[1673298630621,0.01923027,17214.0,17213.0,2.77441045]
[1673298631105,0.01923027,17214.0,17213.0,2.47441045]
[1673298631586,0.01923027,17214.0,17213.0,2.77441045]
[1673298631845,0.01923027,17214.0,17213.0,2.49673645]
[1673298632350,0.01923027,17214.0,17213.0,2.77441045]
[1673298632850,0.00289467,17214.0,17213.0,2.77441045]
[1673298633099,0.00289467,17214.0,17213.0,2.79673645]
[1673298633350,0.00289467,17214.0,17213.0,3.79673645]
[1673298634643,0.00289467,17214.0,17213.0,3.77441045]
[1673298636457,0.00289467,17214.0,17213.0,3.79673645]
[1673298636746,0.00289467,17214.0,17213.0,3.77441045]
[1673298637008,0.00289467,17214.0,17213.0,3.79673645]
[1673298637522,0.00289467,17214.0,17213.0,3.77441045]
[1673298639592,0.00289467,17214.0,17213.0,2.77441045]
[1673298639856,0.00289467,17214.0,17213.0,2.47430961]
[1673298641188,0.00289467,17214.0,17213.0,2.49663561]
[1673298642017,0.00289467,17214.0,17213.0,2.47430961]
[1673298642538,0.00289467,17214.0,17213.0,1.89335361]
[1673298642787,0.81535494,17215.0,17213.0,1.89335361]
[1673298643659,0.81535494,17215.0,17213.0,1.81496661]
[1673298643926,0.81935494,17215.0,17213.0,1.89696661]
[1673298644422,0.64634451,17215.0,17213.0,1.89696661]
[1673298645183,0.81935494,17215.0,17213.0,1.89696661]
[1673298645429,0.64634451,17215.0,17213.0,1.89696661]
[1673298646427,0.81935494,17215.0,17213.0,1.89696661]
[1673298648886,0.81935494,17215.0,17213.0,2.47792261]
[1673298649643,0.64634451,17215.0,17213.0,2.47792261]
[1673298650438,0.64634451,17215.0,17213.0,2.65183869]
[1673298650693,0.004,17215.0,17214.0,0.3]
[1673298651240,0.004,17215.0,17214.0,1.761844]
[1673298651739,0.43343168,17216.0,17214.0,2.62005954]
[1673298652005,0.17358928,17216.0,17214.0,2.63005954]
[1673298652788,0.17358928,17216.0,17214.0,2.62005954]
[1673298653041,0.17358928,17216.0,17214.0,2.63005954]
[1673298653294,0.17358928,17216.0,17215.0,0.2]
[1673298653295,0.00057885,17216.0,17215.0,0.2]
[1673298653574,0.00057885,17216.0,17215.0,2.242664]
[1673298654898,0.05457885,17216.0,17215.0,2.246664]
[1673298655182,0.05457885,17216.0,17215.0,2.24710286]
[1673298655962,0.05457885,17216.0,17215.0,1.946664]
[1673298656487,0.05457885,17216.0,17215.0,1.94710286]
[1673298656975,0.05457885,17216.0,17215.0,1.74710286]
[1673298657245,0.05457885,17216.0,17215.0,1.746664]
[1673298658271,0.05457885,17216.0,17215.0,2.046664]
[1673298658528,0.05457885,17216.0,17215.0,1.746664]
[1673298659060,0.05457885,17216.0,17215.0,2.046664]
[1673298659777,0.05457885,17216.0,17215.0,1.746664]
[1673298660797,0.22758928,17216.0,17215.0,1.746664]
[1673298661294,0.05457885,17216.0,17215.0,1.746664]
[1673298661544,0.05457885,17216.0,17215.0,2.046664]
[1673298662330,0.05457885,17216.0,17215.0,1.746664]
[1673298663359,0.22758928,17216.0,17215.0,1.746664]
[1673298663891,0.05457885,17216.0,17215.0,1.746664]
[1673298664163,0.22758928,17216.0,17215.0,1.746664]
[1673298664410,0.05457885,17216.0,17215.0,1.746664]
[1673298665610,0.05457885,17216.0,17215.0,2.046664]
[1673298665870,0.05457885,17216.0,17215.0,1.746664]
[1673298667349,0.05457885,17216.0,17215.0,2.046664]
[1673298667875,0.05457885,17216.0,17215.0,2.346664]
[1673298668138,0.05457885,17216.0,17215.0,3.514864]
[1673298668395,0.05457885,17216.0,17215.0,3.51530286]
[1673298669447,0.05457885,17216.0,17215.0,3.214864]
[1673298670709,0.05457885,17216.0,17215.0,3.21571338]
[1673298672253,0.05457885,17216.0,17215.0,1.746664]
[1673298672516,0.05457885,17216.0,17215.0,2.04751338]
[1673298672799,0.05457885,17216.0,17215.0,1.74751338]
[1673298673039,0.05457885,17216.0,17215.0,2.04751338]
[1673298675543,0.05457885,17216.0,17215.0,2.34751338]
[1673298676053,0.05457885,17216.0,17215.0,2.04751338]
[1673298676804,0.05457885,17216.0,17215.0,2.34751338]
[1673298678334,0.05448395,17216.0,17215.0,2.54375146]
[1673298683198,0.05448395,17216.0,17215.0,2.34751338]
[1673298683450,0.05448395,17216.0,17215.0,2.52142946]
[1673298683711,0.05448395,17216.0,17215.0,2.54374546]
[1673298686525,0.05448395,17216.0,17215.0,2.346664]
[1673298688265,0.05448395,17216.0,17215.0,2.52058008]
[1673298688986,0.05448395,17216.0,17215.0,2.046664]
[1673298689970,0.05448395,17216.0,17215.0,2.04749521]
[1673298690210,0.05448395,17216.0,17215.0,2.34749521]
[1673298690458,0.05448395,17216.0,17215.0,2.04749521]
[1673298690955,0.05448395,17216.0,17215.0,1.74749521]
[1673298691951,0.05448395,17216.0,17215.0,2.04749521]
[1673298692190,0.05448395,17216.0,17215.0,1.74749521]
[1673298692439,0.05448395,17216.0,17215.0,2.04749521]
[1673298692931,0.05448395,17216.0,17215.0,1.74749521]
[1673298694732,0.05448395,17216.0,17215.0,2.04749521]
[1673298697397,0.05448395,17216.0,17215.0,1.91639521]
[1673298700947,0.05448395,17216.0,17215.0,2.21639521]
[1673298701694,0.05448395,17216.0,17215.0,2.39031129]
[1673298701938,0.05448395,17216.0,17215.0,2.21639521]
[1673298703892,0.05448395,17216.0,17215.0,1.91639521]
[1673298704140,0.05448395,17216.0,17215.0,2.21639521]
[1673298704391,0.05448395,17216.0,17215.0,1.91639521]
[1673298704648,0.05448395,17216.0,17215.0,2.21639521]
[1673298704902,0.05448395,17216.0,17215.0,1.91639521]
[1673298705939,0.05448395,17216.0,17215.0,2.21639521]
[1673298706206,0.05448395,17216.0,17215.0,2.99417704]
[1673298706467,0.05448395,17216.0,17215.0,3.01650386]
[1673298706967,0.05448395,17216.0,17215.0,2.99418786]
[1673298707220,0.05448395,17216.0,17215.0,3.19047179]
[1673298707459,0.05448395,17216.0,17215.0,2.99925579]
[1673298710010,0.05448395,17216.0,17215.0,2.82548719]
[1673298710263,0.05448395,17216.0,17215.0,3.37078545]
[1673298710507,0.05448395,17216.0,17215.0,3.56687005]
[1673298711002,0.05439048,17216.0,17215.0,3.56687005]
[1673298714078,0.05439048,17216.0,17215.0,3.54455405]
[1673298714645,0.05439048,17216.0,17215.0,3.56687005]
[1673298715854,0.05439048,17216.0,17215.0,3.37075222]
[1673298716350,0.05439048,17216.0,17215.0,1.62808822]
[1673298716608,0.05439048,17216.0,17215.0,3.37075222]
[1673298716861,0.05439048,17216.0,17215.0,3.39306822]
[1673298720442,0.05439048,17216.0,17215.0,3.74094913]
[1673298720703,0.05439048,17216.0,17215.0,3.39306512]
[1673298721217,0.05439048,17216.0,17215.0,3.56687005]
[1673298721468,0.05439048,17216.0,17215.0,3.73577005]
[1673298723292,0.05439048,17216.0,17215.0,3.90975468]
[1673298724055,0.05439048,17216.0,17215.0,4.2514939]
[1673298724312,0.05439048,17216.0,17215.0,4.25174181]
[1673298724557,0.05439048,17216.0,17215.0,3.81662766]
[1673298725067,0.05439048,17216.0,17215.0,4.25163055]
[1673298725327,0.00039048,17216.0,17215.0,3.72600732]
[1673298725577,0.00439048,17216.0,17215.0,3.86100732]
[1673298728678,0.00439048,17216.0,17215.0,4.20892397]
[1673298729465,0.00439048,17216.0,17215.0,4.20889319]
[1673298731738,0.00428349,17216.0,17215.0,4.20889319]
[1673298734052,0.00428349,17216.0,17215.0,3.9474518]
[1673298734053,0.00131569,17216.0,17215.0,3.9474518]
[1673298734300,0.00131569,17216.0,17215.0,5.43513815]
[1673298734552,0.00131569,17216.0,17215.0,4.88983989]
[1673298734805,0.00131569,17216.0,17215.0,5.51284196]
[1673298735062,0.00906225,17218.0,17216.0,0.3]
[1673298735321,0.00906225,17218.0,17217.0,5.50795648]
[1673298735611,0.00906225,17218.0,17217.0,5.65640936]
[1673298735868,0.00906225,17218.0,17217.0,6.09105107]
[1673298736402,0.00906225,17218.0,17217.0,5.83026348]
[1673298736648,0.00906225,17218.0,17217.0,5.65145011]
[1673298736890,0.00906225,17218.0,17217.0,5.99897403]
[1673298737152,0.01306225,17218.0,17217.0,5.65142955]
[1673298737407,0.00906225,17218.0,17217.0,5.65142955]
[1673298737704,0.01206225,17218.0,17217.0,6.25301004]
[1673298737945,0.00906225,17218.0,17217.0,6.17101004]
[1673298738232,0.01306225,17218.0,17217.0,6.30901004]
[1673298738487,0.00906225,17218.0,17217.0,5.6494876]
[1673298738742,0.01306225,17218.0,17217.0,7.00943109]
[1673298739071,0.01306225,17218.0,17217.0,7.61748097]
[1673298739259,0.01306225,17218.0,17217.0,7.35688584]
[1673298739754,0.01306225,17218.0,17217.0,7.00943109]
[1673298740005,0.01306225,17218.0,17217.0,6.00943109]
[1673298740253,0.01306225,17218.0,17217.0,5.30943109]
[1673298740767,0.01306225,17218.0,17217.0,6.65682077]
[1673298741012,0.01306225,17218.0,17217.0,6.30943109]
[1673298741265,0.01306225,17218.0,17217.0,6.65682209]
[1673298741795,0.01306225,17218.0,17217.0,7.35682209]
[1673298743298,0.01306225,17218.0,17217.0,6.65682209]
[1673298744043,0.01306225,17218.0,17217.0,6.30943109]
[1673298744301,0.01306225,17218.0,17217.0,6.65682923]
[1673298745049,0.01306225,17218.0,17217.0,6.13488574]
[1673298745302,0.01306225,17218.0,17217.0,6.13498621]
[1673298745559,0.01306225,17218.0,17217.0,5.96093794]
[1673298746347,0.01306225,17218.0,17217.0,6.91730669]
[1673298746655,0.01306225,17218.0,17217.0,6.65673381]
[1673298749060,0.01306225,17218.0,17217.0,6.39554497]
[1673298749306,0.01306225,17218.0,17217.0,6.65676741]
[1673298749808,0.01306225,17218.0,17217.0,6.30936927]
[1673298751064,0.01306225,17218.0,17217.0,6.90936927]
[1673298751603,0.01306225,17218.0,17217.0,6.47474812]
[1673298751870,0.01306225,17218.0,17217.0,5.87474812]
[1673298752088,0.01306225,17218.0,17217.0,6.47474812]
[1673298752332,0.01306225,17218.0,17217.0,7.69971665]
[1673298752585,0.00213717,17218.0,17217.0,8.22114679]
[1673298752839,0.00213717,17218.0,17217.0,8.12661397]
[1673298753100,0.00213717,17218.0,17217.0,8.85003747]
[1673298754202,0.00051432,17218.0,17217.0,8.85003747]
[1673298754481,3.2e-07,17218.0,17217.0,8.85003747]
[1673298754747,0.00905071,17220.0,17218.0,0.3]
[1673298754992,0.00905071,17220.0,17219.0,4.59868618]
[1673298755246,0.00905071,17220.0,17219.0,5.48608095]
[1673298755812,0.01205071,17220.0,17219.0,4.96397814]
[1673298756050,0.01205071,17220.0,17219.0,5.55703775]
[1673298756298,0.00905071,17220.0,17219.0,5.55703775]
[1673298756548,0.00905071,17220.0,17219.0,5.87068388]
[1673298756549,0.01205071,17220.0,17219.0,5.87068388]
[1673298756858,0.01205071,17220.0,17219.0,5.69703775]
[1673298757388,0.01205071,17220.0,17219.0,6.39285074]
[1673298757643,0.01205071,17220.0,17219.0,6.52616545]
[1673298757899,0.01205071,17220.0,17219.0,8.92781827]
[1673298758186,0.01205071,17220.0,17219.0,8.74891438]
[1673298758716,7.1e-07,17220.0,17219.0,8.75092379]
[1673298758972,0.01008548,17221.0,17219.0,8.75092379]
[1673298759228,0.01008548,17221.0,17220.0,3.18484835]
[1673298759489,0.01008548,17221.0,17220.0,4.66866905]
[1673298759741,0.01008548,17221.0,17220.0,5.24938905]
[1673298759999,0.01008548,17221.0,17220.0,3.89217697]
[1673298760254,0.01008548,17221.0,17220.0,4.59217697]
[1673298760551,0.01008548,17221.0,17220.0,4.73117697]
[1673298760830,0.01008548,17221.0,17220.0,4.41857145]
[1673298761132,0.01008548,17221.0,17220.0,3.25415182]
[1673298761375,0.01008548,17221.0,17220.0,3.0805309]
[1673298761900,0.01008548,17221.0,17220.0,3.11515182]
[1673298762267,0.01008548,17221.0,17220.0,3.0805309]
[1673298762522,0.01008548,17221.0,17220.0,3.25415182]
[1673298763023,0.17898548,17221.0,17220.0,3.0805309]
[1673298763547,0.17898548,17221.0,17220.0,2.7805309]
[1673298765061,0.17898548,17221.0,17220.0,2.7582389]
[1673298769103,0.17898548,17221.0,17220.0,2.1775189]
[1673298770131,0.17898548,17221.0,17220.0,2.7582389]
[1673298771983,0.17898548,17221.0,17220.0,2.93185982]
[1673298772551,0.17898548,17221.0,17220.0,2.7582389]
[1673298772806,0.17898548,17221.0,17220.0,2.93185982]
[1673298773053,0.17898548,17221.0,17220.0,2.91185982]
[1673298773300,0.17898548,17221.0,17220.0,3.17228449]
[1673298773551,0.17898548,17221.0,17220.0,2.91185982]
[1673298773818,0.17898548,17221.0,17220.0,3.17228449]
[1673298774318,0.17898548,17221.0,17220.0,2.91185982]
[1673298777379,0.01008548,17221.0,17220.0,2.91185982]
[1673298778193,0.01008548,17221.0,17220.0,2.7382389]
[1673298779442,0.01008548,17221.0,17220.0,2.91185982]
[1673298782365,0.01008548,17221.0,17220.0,3.17228449]
[1673298782638,0.01008548,17221.0,17220.0,2.91185982]
[1673298783198,0.01008548,17221.0,17220.0,3.17228449]
[1673298783687,0.01008548,17221.0,17220.0,2.91185982]
[1673298783933,0.01008548,17221.0,17220.0,3.17228449]
[1673298784247,0.01008548,17221.0,17220.0,2.91185982]
[1673298784502,0.01008548,17221.0,17220.0,3.17228449]
[1673298784994,0.01008548,17221.0,17220.0,2.91185982]
[1673298785237,0.01008548,17221.0,17220.0,3.5281909]
[1673298785542,0.01008548,17221.0,17220.0,3.5504809]
[1673298786326,0.01008548,17221.0,17220.0,3.5281909]
[1673298786576,0.01008548,17221.0,17220.0,3.52850488]
[1673298788559,0.01008548,17221.0,17220.0,4.30179642]
[1673298788802,0.01008548,17221.0,17220.0,4.32408642]
[1673298790079,0.01008548,17221.0,17220.0,4.30179642]
[1673298790581,0.01008548,17221.0,17220.0,4.32408642]
[1673298790823,0.01008548,17221.0,17220.0,4.49804839]
[1673298791073,0.01008548,17221.0,17220.0,4.12853195]
[1673298792625,0.01008548,17221.0,17220.0,4.15082195]
[1673298793374,0.00508548,17221.0,17220.0,4.49804839]
[1673298793607,0.00508548,17221.0,17220.0,4.32408642]
[1673298795681,0.00508548,17221.0,17220.0,4.30179642]
[1673298796160,0.00508548,17221.0,17220.0,4.12854511]
[1673298796406,0.00508548,17221.0,17220.0,4.30179642]
[1673298796975,0.00508548,17221.0,17220.0,4.32408642]
[1673298797191,0.00508548,17221.0,17220.0,4.30179642]
[1673298797707,0.00508548,17221.0,17220.0,4.32408642]
[1673298797969,0.00508548,17221.0,17220.0,4.67658116]
[1673298798246,0.00508548,17221.0,17220.0,4.15045083]
[1673298798468,0.00508548,17221.0,17220.0,4.15133812]
[1673298798721,0.00508548,17221.0,17220.0,3.71643531]
[1673298798966,0.00127448,17221.0,17220.0,3.71643531]
[1673298799733,0.00127448,17221.0,17220.0,4.24046927]
[1673298800003,0.00127448,17221.0,17220.0,5.66331154]
[1673298800258,0.00127448,17221.0,17220.0,5.7226014]
[1673298800514,0.00127448,17221.0,17220.0,5.1418814]
[1673298800995,0.00127448,17221.0,17220.0,5.7028814]
[1673298801241,0.00127448,17221.0,17220.0,5.8418814]
[1673298801495,0.01034884,17222.0,17221.0,0.3]
[1673298801753,0.01065154,17224.0,17222.0,0.3]
[1673298802031,0.01065154,17224.0,17223.0,5.04699942]
[1673298802280,0.01065154,17224.0,17223.0,5.75070572]
[1673298802531,0.01065154,17224.0,17223.0,6.23571782]
[1673298802790,0.01065154,17224.0,17223.0,6.04960567]
[1673298803048,0.01065154,17224.0,17223.0,6.39740812]
[1673298803413,0.01065154,17224.0,17223.0,6.22335673]
[1673298803828,0.01050154,17224.0,17223.0,5.881855]
[1673298804343,0.01050154,17224.0,17223.0,5.66594859]
[1673298804599,0.01050154,17224.0,17223.0,5.40525356]
[1673298805113,0.01050154,17224.0,17223.0,5.23145284]
[1673298805616,0.01050154,17224.0,17223.0,5.40525356]
[1673298806136,0.01050154,17224.0,17223.0,5.66594859]
[1673298806411,0.01050154,17224.0,17223.0,5.40525356]
[1673298807232,0.01050154,17224.0,17223.0,5.66594859]
[1673298807426,0.01050154,17224.0,17223.0,5.40525356]
[1673298808207,0.01050154,17224.0,17223.0,6.01980864]
[1673298808545,0.01050154,17224.0,17223.0,6.1939108]
[1673298808762,0.01050154,17224.0,17223.0,5.4198384]
[1673298809021,0.01050154,17224.0,17223.0,4.50528332]
[1673298809823,0.01050154,17224.0,17223.0,4.30528332]
[1673298810313,0.01050154,17224.0,17223.0,4.43155327]
[1673298810569,0.01050154,17224.0,17223.0,3.72466532]
[1673298810833,0.17940154,17224.0,17223.0,2.94793584]
[1673298811861,0.17940154,17224.0,17223.0,3.52855384]
[1673298812123,0.17940154,17224.0,17223.0,3.82855384]